Workbook

Sheet Deuda
D1: SERVICIO NACIONAL DE SALUD
D2: DIRECCION DE FISCALIZACION Y CONTROL
D3: COMPROMISO DE DEUDAS AL 31 DE OCTUBRE 2025
A6: ESTABLECIMIENTO:___________________________________________________________________________ | C6: REGIONAL DE SALUD HIGUAMO
A8: NO | B8: NOMBRES PROVEEDOR | C8: DESCRIPCION (CONCEPTO) | D8: FUENTE FINANCIAMIENTOS (AF-VS) | E8: DEUDA AÑOS ANTERIORES 2022 | F8: MONTO AÑO 2023 | G8: MONTO AÑO 2024 | H8: MONTO AÑO 2025 AL 31 ENERO | I8: MONTO AÑO 2025 AL 31 DE MARZO | J8: MONTO AÑO 2025 AL 30 DE ABRIL | K8: MONTO AÑO 2025 AL 30 DE MAYO | L8: MONTO AÑO 2025 AL 30 DE JUNIO | M8: MONTO AL 31 DE JULIO | N8: MONTO AÑO 2025 AL 31 DE AGOSTO | O8: MONTO AÑO 2025 AL 30 DESEPTIEMBRE | P8: MONTO AÑO 2025 AL 30 DE OCTUBRE | Q8: TOTAL ADEUDA
B9: OVIEDO FARMA SRL | C9: COMPRA DE NEVERA | D9: VENTA DE SERVICIO | G9: 742,000.00 | Q9: =G9 -> 742,000.00
B10: AYUNTAMINETO MUNICIPAL | C10: ASEO Y ALBITRIO | D10: VENTA DE SERVICIO | H10: 152,070.00 | Q10: =H10 -> 152,070.00
B11: RAMIREZ PEÑA FOOD | C11: ALIMENTOS Y BEBIDAS | D11: VENTA DE SERVICIO | J11: 18,526.00 | Q11: =J11 -> 18,526.00
B12: RAMIREZ PEÑA FOOD | C12: ALIMENTOS Y BEBIDAS | D12: VENTA DE SERVICIO | J12: 14,484.50 | Q12: =J12 -> 14,484.50
B13: POLLO SANDIE | C13: ALIMENTOS Y BEBIDOS | D13: VENTA DE SERVICOS | K13: 9,902.00 | Q13: =K13 -> 9,902.00
B14: POLLO SANDIE | C14: ALIMENTOS Y BEBIDOS | D14: VENTA DE SERVICIOS | K14: 11,023.00 | Q14: =K14 -> 11,023.00
B15: POLLO SANDIE | C15: ALIMENTOS Y BEBIDOS | D15: VENTA DE SERVICIOS | K15: 34,980.00 | Q15: 34,980.00
B16: SANTOS PEREZ CEDEÑO | C16: MANT DE EQUIPO | D16: VENTA DE SERVICIO | L16: 590.00 | Q16: =L16 -> 590.00
B17: TOPOGRAFIA | C17: REMOZAMIENTO CPN YANIGUA | D17: VENTA DE SERVICIOS | L17: 1,222,202.19 | Q17: =L17 -> 1,222,202.19
B18: CENTRO FERRETERO DEL ESTS | C18: ARTICULOS FERRETEROS | D18: VENTA DE SERVICIOS | L18: 40,774.61 | Q18: =L18 -> 40,774.61
B19: CENTRO FERRETERO DEL ESTS | C19: ARTICULOS FERRETEROS | D19: VENTA DE SERVICIOS | L19: 34,598.57 | Q19: =L19 -> 34,598.57
B20: COOAROM | C20: AGUA | D20: VENTA DE SERVICIOS | L20: 17,040.00 | Q20: =L20 -> 17,040.00
B21: RAMIREZ PEÑA FOOD | C21: ALIMENTOS Y BEBIDAS | D21: VENTA DE SERVICIOS | L21: 39,499.50 | Q21: =L21 -> 39,499.50
B22: HOME HILARIO | C22: MATERIAL DE LIMPIEZA | D22: VENTA DE SERVICIO | L22: 34,113.80 | Q22: =L22 -> 34,113.80
B23: RAMIREZ PEÑA FOOT | C23: ALIMENTOS Y BEBIDAS | D23: VENTA DE SERVICIO | L23: 6,608.00 | Q23: =L23 -> 6,608.00
B24: SANTOS PEREZ CEDEÑO | C24: MANT DE EQUIPO DE TRANSPORTE | D24: VENTA DE SERVICIO | M24: 590.00 | Q24: =M24 -> 590.00
B25: CENTRO FERRETERO DEL ESTE | C25: ARTICULOS FERRETEROS | D25: VENTA DE SERVICIO | M25: 18,110.14 | Q25: =M25 -> 18,110.14
B26: HERRERA & SANCHEZ | C26: MANT DE EQUIPÒ DE TRANSPORTE | D26: VENTA DE SERVICIO | M26: 9,480.00 | Q26: =M26 -> 9,480.00
B27: SANTOS PEREZ CEDEÑO | C27: MANT DE EQUIPO DE TRANSPORTE | D27: VENTA DE SERVICIO | M27: 1,180.00 | Q27: =M27 -> 1,180.00
B28: SANTOS PEREZ CEDEÑO | C28: MANT DE EQUIPO DE TRANSPORTE | D28: VENTA DE SERVICIO | M28: 590.00 | Q28: =M28 -> 590.00
B29: SANTOS PEREZ CEDEÑO | C29: MANT DE EQUIPO DE TRANSPORTE | D29: VENTA DE SERVICIO | M29: 590.00 | Q29: =M29 -> 590.00
B30: SANTOS PEREZ CEDEÑO | C30: MANT DE EQUIPO DE TRANSPORTE | D30: VENTA DE SERVICIO | M30: 590.00 | Q30: =M30 -> 590.00
B31: SANTOS PEREZ CEDEÑO | C31: MANT DE EQUIPO DE TRANSPORTE | D31: VENTA DE SERVICIO | M31: 590.00 | Q31: =M31 -> 590.00
B32: ENMNUEL CENTRO DE GOMAS | C32: REPARACION DE VEHICULOS | D32: VENTAS DE SERVICIOS | M32: 767.00 | Q32: =M32 -> 767.00
B33: HOME HILARIO | C33: MATERIAL DE OFICINA | D33: VENTA DE SERVICIO | M33: 8,968.00 | Q33: =M33 -> 8,968.00
B34: SERVI FRENO DIAZ | C34: MANT DE EQUIPO DE TRANSPORTE | D34: VENTA DE SERVICIO | M34: 6,000.01 | Q34: =M34 -> 6,000.01
B35: SERVI FRENO DIAZ | C35: MANT DE EQUIPO DE TRANSPORTE | D35: VENTA DE SERVICIO | M35: 15,350.01 | Q35: =M35 -> 15,350.01
B36: SERVI FRENO DIAZ | C36: MANT DE EQUIPO DE TRANSPORTE | D36: VENTA DE SERVICIO | M36: 5,900.00 | Q36: =M36 -> 5,900.00
B37: SERVI FRENO DIAZ | C37: MANT DE EQUIPO DE TRANSPORTE | D37: VENTA DE SERVICIO | M37: 10,800.00 | Q37: =M37 -> 10,800.00
B38: PAPELERIA CACTUS | C38: MATERIAL DE OFICINA | D38: VENTA DE SERVICIO | M38: 7,065.05 | Q38: =M38 -> 7,065.05
B39: RAUL SANCHEZ | C39: MANT DE EQUIPO DE TRANSPORTE | D39: VENTA DE SERVICIOS | M39: 13,924.00 | Q39: =M39 -> 13,924.00
B40: DISTRIBUIDORA DE GAS | C40: ARTICULOS FERRETEROS | D40: VENTA DE SERVICIOS | N40: 190,115.00 | Q40: =N40 -> 190,115.00
B41: LINEXI INSUMOS MEDICOS | C41: MANT DE EQUIPO | D41: VENTA DE SERVICIOS | N41: 270,810.00 | Q41: =N41 -> 270,810.00
B42: MUSABELL SRL | C42: ALIMENTOS Y BEBIDAS | D42: VENTA DE SERVICIOS | N42: 49,825.50 | Q42: =N42 -> 49,825.50
B43: SERVIS FRENO DIAZ | C43: MANT DE EQUIPO DE TRANSPORTE | D43: VENTA DE SERVICIOS | N43: 12,200.00 | Q43: =N43 -> 12,200.00
B44: SERVI FRENO DIAZ | C44: MANT DE EQUIPO DE TRANSPORTE | D44: VENTA DE SERVICIOS | N44: 6,950.00 | Q44: =N44 -> 6,950.00
B45: MAXIMA FERRETERIA | C45: ARTICULOS FERRETEROS | D45: VENTA DE SERVICIOS | N45: 28,700.13 | Q45: =N45 -> 28,700.13
B46: ROCE DENTAL | C46: UNIDAD DE ODONTOLOGIA | D46: VENTA DE SERVICIOS | N46: 749,299.99 | Q46: =N46 -> 749,299.99
B47: SERVI FRENO DIAZ | C47: MANT DE EQUIPO DE TRANSPORTE | D47: VENTA DE SERVICIOS | N47: 6,400.00 | Q47: =N47 -> 6,400.00
B48: BIMI STOP SRL | C48: ALIMENTOS Y BEBIDAS | D48: VENTA DE SERVICIOS | N48: 41,418.00 | Q48: =N48 -> 41,418.00
B49: VASQUEZ REPUESTOS Y SERVICIOS | C49: MANT DE EQUIPOS DE TRANSPORTE | D49: VENTA DE SERVICIOS | N49: 1,850.00 | Q49: =N49 -> 1,850.00
B50: VASQUEZ REPUESTOS Y SERVICIOS | C50: MANT DE EQUIPO DE TRANSPORTE | D50: VENTA DE SERVICIOS | N50: 15,040.00 | Q50: =N50 -> 15,040.00
B51: DISTRIBUIDORA DE GAS | C51: ARTICULOS FERRETEROS | D51: VENTA DE SERVICIOS | N51: 114,175.01 | Q51: =N51 -> 114,175.01
B52: CENTRO FERRETERO DEL ESTE | C52: ARTICULOS FERRETEROS | D52: VENTAS DE SERVICIOS | N52: 148,391.31 | Q52: =N52 -> 148,391.31
B53: MAXIMA FERRETERIA | C53: ARTICULOS FERRETEROS | D53: VENTA DE SERVICIOS | N53: 132,957.06 | Q53: =N53 -> 132,957.06
C54: BIMI STOP SRL | D54: VENTA DE SERVICIOS | O54: 7,640.00 | Q54: =O54 -> 7,640.00
C55: CENTRO FERRETERO DEL ESTE | D55: VENTA DE SERVICIOS | O55: 48,320.02 | Q55: =O55 -> 48,320.02
C56: CAPELLAN DENTAL SRL | D56: VENTA DE SERVICIOS | O56: 1,676,121.88 | Q56: =O56 -> 1,676,121.88
C57: JUAN DE LEON BERROA | D57: VENTA DE SERVICIOS | O57: 18,142.50 | Q57: =O57 -> 18,142.50
C58: CENTRO FERRETERO EL POLI | D58: VENTA DE SERVICIOS | O58: 12,554.67 | Q58: =O58 -> 12,554.67
C59: JUAN DE LEON BERROA | D59: VENTA DE SERVICIOS | O59: 39,471.00 | Q59: =O59 -> 39,471.00
C60: CENTRO FERRETERO DEL ESTE | D60: VENTA DE SERVICIOS | O60: 25,030.02 | Q60: =O60 -> 25,030.02
C61: MUSABELL SRL | D61: VENTA DE SERVICIOS | O61: 52,486.40 | Q61: =O61 -> 52,486.40
C62: MULTI BOX SRL | D62: VENTA DE SERVICIOS | O62: 3,320.00 | Q62: =O62 -> 3,320.00
C63: IMPRESORA YERALDIN | D63: VENTA DE SERVICIOS | O63: 40,828.00 | Q63: =O63 -> 40,828.00
C64: JUAN DE LEON BERROA | D64: VENTA DE SERVICIOS | O64: 56,050.00 | Q64: =O64 -> 56,050.00
D65: VENTA DE SERVICIOS | Q65: =O65 -> 0
C66: MARCOS ANTONIO MERCEDES | D66: VENTA DE SERVICIOS | O66: 466,500.20 | Q66: =O66 -> 466,500.20
C67: ALMACENES IBERIA SRL | D67: VENTA DE SERVICIOS | O67: 18,207.00 | Q67: =O67 -> 18,207.00
C68: ALMACENES IBERIA SRL | D68: VENTA DE SERVICIOS | O68: 50,527.19 | Q68: =O68 -> 50,527.19
C69: IMPRESORA YERALDIN | D69: VENTA DE SERVICIOS | O69: 40,828.00 | Q69: =O69 -> 40,828.00
C70: AUTO REPUESTO PADILLA | D70: VENTA DE SERVICIOS | O70: 330,400.00 | Q70: =O70 -> 330,400.00
C71: VASQUEZ REPUESTOS Y SERVICIOS | D71: VENTA DE SERVICIOS | O71: 11,340.00 | Q71: =O71 -> 11,340.00
C72: ALMANZAR ESTEVEZ | D72: VENTA DE SERVICIOS | O72: 28,500.00 | Q72: =O72 -> 28,500.00
C73: ALMANZAR ESTEVEZ | D73: VENTA DE SERVICIOS | O73: 65,010.00 | Q73: =O73 -> 65,010.00
C74: VASQUEZ REPUESTOS Y SERVICIOS | D74: VENTA DE SERVICIOS | O74: 14,540.00 | Q74: =O74 -> 14,540.00
C75: BIONUCLEAR | D75: VENTA DE SERVICIOS | O75: 163,061.08 | Q75: =O75 -> 163,061.08
C76: PAPELERIA CACTUS | D76: VENTA DE SERVICIOS | O76: 24,374.99 | Q76: =O76 -> 24,374.99
C77: CENTRO FERRETERO DEL ESTE | D77: VENTA DE SERVICIOS | O77: 7,789.98 | Q77: =O77 -> 7,789.98
C78: CENTRO FERRETERO DEL ESTE | D78: VENTA DE SERVICIOS | O78: 53,904.96 | Q78: =O78 -> 53,904.96
C79: CENTRO FERRETERO DEL ESTE | D79: VENTA DE SERVICIOS | O79: 28,289.97 | Q79: =O79 -> 28,289.97
C80: VROA SERVICIOS MULTIPLES | D80: VENTA DE SERVICIOS | O80: 280,000.00 | Q80: =O80 -> 280,000.00
C81: BIONUCLEAR | D81: VENTA DE SERVICIOS | O81: 19,502.59 | Q81: =O81 -> 19,502.59
C82: MULTI BOX SRL | D82: VENTA DE SERVICIOS | O82: 3,320.00 | Q82: =O82 -> 3,320.00
C83: RALANSA EIRL | D83: VENTA DE SERVICIOS | O83: 13,887.00 | Q83: =O83 -> 13,887.00
C84: RALANSA EIRL | D84: VENTA DE SERVICIOS | O84: 16,160.00 | Q84: =O84 -> 16,160.00
C85: HOME HILARIO | D85: VENTA DE SERVICIOS | P85: 7,699.50 | Q85: =P85 -> 7,699.50
C86: FARMACONAL | D86: VENTA DE SERVICIOS | P86: 5,152.47 | Q86: =P86 -> 5,152.47
C87: DINAMED SRL | D87: VENTA DE SERVICIOS | P87: 80,544.80 | Q87: =P87 -> 80,544.80
C88: LIBRERÍA Y PAPELERIA EL SEMBRADOR | D88: VENTA DE SERVICIOS | P88: 14,039.92 | Q88: =P88 -> 14,039.92
C89: OLIVARES COMPUTADORAS | D89: VENTA DE SERVICIOS | P89: 2,700.01 | Q89: =P89 -> 2,700.01
C90: CR CASTILLO | D90: VENTA DE SERVICIOS | P90: 38,814.75 | Q90: =P90 -> 38,814.75
C91: PRODUCTOS JOEL | D91: VENTA DE SERVICIOS | P91: 12,110.00 | Q91: =P91 -> 12,110.00
C92: IMPRESORA YERALDIN | D92: VENTA DE SERVICIOS | P92: 59,000.00 | Q92: =P92 -> 59,000.00
C93: CENTRO FERRETERO | D93: VENTA DE SERVICIOS | P93: 88,932.12 | Q93: =P93 -> 88,932.12
C94: BIO-NOVA SRL | D94: VENTA DE SERVICIOS | Q94: =P94 -> 0
C95: CENTRO FERRETERO | D95: VENTA DE SERVICIOS | P95: 36,355.13 | Q95: =P95 -> 36,355.13
C96: JUAN DE LEON BERROA | D96: VENTA DE SERVICIOS | P96: 12,036.00 | Q96: =P96 -> 12,036.00
C97: JUAN DE LEON BERROA | D97: VENTA DE SERVICIOS | P97: 19,859.40 | Q97: =P97 -> 19,859.40
C98: JUAN DE LEON BERROA | D98: VENTA DE SERVICIOS | P98: 17,523.00 | Q98: =P98 -> 17,523.00
C99: JARDIN ORIENTAL | D99: VENTA DE SERVICIOS | P99: 1,368.80 | Q99: =P99 -> 1,368.80
C100: VASQUEZ REPUESTOS Y SERVICIOS | D100: VENTA DE SERVICIOS | P100: 7,900.00 | Q100: =P100 -> 7,900.00
C101: JARDIN ORIENTAL | D101: VENTA DE SERVICIOS | P101: 1,534.00 | Q101: =P101 -> 1,534.00
C102: CENTRO FERRETERO | D102: VENTA DE SERVICIOS | P102: 71,715.09 | Q102: =P102 -> 71,715.09
C103: JARDIN ORIENTAL | D103: VENTA DE SERVICIOS | P103: 1,368.80 | Q103: =P103 -> 1,368.80
C104: JARDIN ORIENTAL | D104: VENTA DE SERVICIOS | P104: 1,534.00 | Q104: =P104 -> 1,534.00
C105: JARDIN ORIENTAL | D105: VENTA DE SERVICIOS | P105: 1,652.00 | Q105: =P105 -> 1,652.00
C106: JARDIN ORIENTAL | D106: VENTA DE SERVICIOS | P106: 944.00 | Q106: =P106 -> 944.00
C107: TIENDA MULTI BOX | D107: VENTA DE SERVICIOS | P107: 15,239.70 | Q107: =P107 -> 15,239.70
C108: VASQUEZ REPUESTOS Y SERVICIOS | D108: VENTA DE SERVICIOS | P108: 4,125.00 | Q108: =P108 -> 4,125.00
C109: VASQUEZ REPUESTOS Y SERVICIOS | D109: VENTA DE SERVICIOS | P109: 4,765.00 | Q109: =P109 -> 4,765.00
C110: IMPRESORA YERALDIN | D110: VENTA DE SERVICIOS | P110: 19,411.00 | Q110: =P110 -> 19,411.00
C111: JARDIN ORIENTAL | D111: VENTA DE SERVICIOS | P111: 1,298.00 | Q111: =P111 -> 1,298.00
C112: JUAN DE LEON BERROA | D112: VENTA DE SERVICIOS | P112: 2,469.74 | Q112: =P112 -> 2,469.74
C113: RAMIREZ PEÑA | D113: VENTA DE SERVICIOS | P113: 20,060.00 | Q113: =P113 -> 20,060.00
C114: JUAN DE LEON BERROA | D114: VENTA DE SERVICIOS | P114: 21,063.00 | Q114: =P114 -> 21,063.00
C115: JUAN DE LEON BERROA | D115: VENTA DE SERVICIOS | P115: 21,240.00 | Q115: =P115 -> 21,240.00
Q119: =M119 -> 0
B120: TOTAL GENERAL | E120: =SUM(#REF!) ->  | F120: =SUM(F10:F10) -> 0 | G120: =SUM(G9) -> 742,000.00 | H120: =SUM(H9:H10) -> 152,070.00 | I120: =SUM(I9:I10) -> 0 | J120: =SUM(J9:J12) -> 33,010.50 | K120: =SUM(K9:K119) -> 55,905.00 | L120: =SUM(L9:L119) -> 1,395,426.67 | M120: =SUM(M9:M119) -> 100,494.21 | N120: =SUM(N9:N119) -> 1,768,132.00 | O120: =SUM(O9:O119) -> 3,616,107.45 | P120: =SUM(P9:P119) -> 592,455.23 | Q120: =SUM(Q9:Q119) -> 8,455,601.06
C121: GASTOS FIJOS
C122: EDEESTE | D122: SERVICIO DE ENERGIA ELECTRICA | Q122: 6,170.09
C123: ESTACION DE COMBUSTIBLES | D123: COMBUSTIBLES | Q123: 553,606.38
C124: AYUNTAMIENTO MUNICIPAL SPM | D124: SERVICIO DE ASEO | Q124: 5,590.00
C125: ALQUILERES | D125: LOCAL DE LAS UNAP SRS ESTE | Q125: 847,055.54
Q126: =SUM(Q122:Q125) -> 1,412,422.01
B127: TOTAL GENERAL | Q127: =Q120+Q126 -> $9,868,023.07
B129: Preparado Por: | C129: Revisado Por: | D129: Autorizado Por:
B132: Lic. Felicia Ubiera | C132: Lic. Crispin del Carmen R. | D132: Licda. Yudelky Jabalera
B133: Enc. De Cuentas por Cobrar | C133: Gerente Financiero | D133: Administradora
B369: TOTAL GENERAL | E369: =SUM(#REF!) ->  | F369: =SUM(#REF!) ->  | G369: =SUM(#REF!) ->  | H369: =SUM(#REF!) ->  | I369: =SUM(#REF!) ->  | J369: =SUM(#REF!) ->  | K369: =SUM(#REF!) ->  | L369: =SUM(#REF!) ->  | M369: =SUM(#REF!) ->  | N369: =SUM(#REF!) -> 
C370: GASTOS FIJOS
C371: EDEESTE | D371: SERVICIO DE ENERGIA ELECTRICA | N371: 6,170.09
C372: ESTACION DE COMBUSTIBLES | D372: COMBUSTIBLES | N372: 553,606.38
C373: AYUNTAMIENTO MUNICIPAL SPM | D373: SERVICIO DE ASEO | N373: 5,590.00
C374: ALQUILERES | D374: LOCAL DE LAS UNAP SRS ESTE | N374: 825,950.54
N375: =SUM(N371:N374) -> 1,391,317.01
B376: TOTAL GENERAL | N376: =N369+N375 -> 
B379: Preparado Por: | C379: Revisado Por: | D379: Autorizado Por:
B383: Lic. Felicia Ubiera | C383: Dr. Ricardo Julio Romero | D383: Licda. Yudelky Jabalera
B384: Enc. De Cuentas por Cobrar | C384: Director | D384: Administradora
